bitfinex/quotes_ETHUSD_20250807
["timestamp","ask_amount","ask_price","bid_price","bid_amount"]
[1754538923679,15.47533887,3663.7,3663.3,1.01997521]
[1754538923680,2.72970464,3663.4,3663.3,1.01997521]
[1754538923839,14.72552619,3663.4,3663.3,1.01997521]
[1754538924043,15.81462619,3663.4,3663.3,1.01997521]
[1754538924660,7.93380464,3663.4,3663.3,1.01997521]
[1754538926239,8.48380464,3663.4,3663.3,1.01997521]
[1754538926440,11.2124665,3663.4,3663.3,1.01997521]
[1754538926635,18.3924665,3663.4,3663.3,1.01997521]
[1754538928038,21.3924665,3663.4,3663.3,1.01997521]
[1754538942483,21.3924665,3663.4,3663.3,1.01997521]
[1754538944392,18.66380464,3663.4,3663.3,1.01997521]
[1754538946701,26.54657213,3663.4,3663.3,1.01997521]
[1754538954284,27.36730413,3663.4,3663.3,1.01997521]
[1754538961690,20.18730413,3663.4,3663.3,1.01997521]
[1754538966558,20.18020413,3663.4,3663.3,1.01997521]
[1754538966763,22.90886599,3663.4,3663.3,1.01997521]
[1754538967459,0.55,3663.1,3662.9,1.08801928]
[1754538967660,6.28015179,3662.8,3662.7,1.12004132]
[1754538967956,22.08758114,3662.8,3662.7,1.12004132]
[1754538970157,22.90845214,3662.8,3662.7,1.12004132]
[1754538971665,21.96325214,3662.8,3662.7,1.12004132]
[1754538972040,19.23310035,3662.8,3662.7,1.12004132]
[1754538973565,8.621671,3662.8,3662.7,1.12004132]
[1754538973857,16.50443849,3662.8,3662.7,1.57264132]
[1754538974064,16.50443849,3662.8,3662.7,1.12004132]
[1754538974968,20.17979028,3662.8,3662.7,1.12004132]
[1754538975177,22.47077212,3662.8,3662.7,1.12004132]
[1754538976249,19.74062033,3662.8,3662.7,1.12004132]
[1754538976563,22.47077212,3662.8,3662.7,1.12004132]
[1754538976854,18.79542033,3662.8,3662.7,1.12004132]
[1754538977260,21.52557212,3662.8,3662.7,1.12004132]
[1754538977663,21.99817212,3662.8,3662.7,1.12004132]
[1754538978043,29.17817212,3662.8,3662.7,1.12004132]
[1754538978564,29.65077212,3662.8,3662.7,1.12004132]
[1754538979863,29.17817212,3662.8,3662.7,1.12004132]
[1754538981260,29.64737212,3662.8,3662.7,1.12004132]
[1754538986352,28.82650112,3662.8,3662.7,1.12004132]
[1754538990981,10.8668,3662.8,3662.7,1.12004132]
[1754538991190,14.4308,3662.8,3662.7,1.57264132]
[1754538991491,14.9808,3662.8,3662.7,1.89694132]
[1754538993063,22.86356749,3662.8,3662.7,1.57264132]
[1754538993981,22.86356749,3662.8,3662.7,1.12004132]
[1754538994696,14.9808,3662.8,3662.7,1.12004132]
[1754538997662,17.71095179,3662.8,3662.7,1.12004132]
[1754538998265,18.66975179,3662.8,3662.7,1.12004132]
[1754538999920,20.90881365,3662.8,3662.7,1.12004132]
[1754539000056,15.95648214,3662.7,3662.6,0.002]
[1754539000255,16.91528214,3662.7,3662.6,0.002]
[1754539002474,17.73618214,3662.7,3662.6,0.002]
[1754539002772,20.464844,3662.7,3662.6,0.002]
[1754539009502,27.644844,3662.7,3662.6,0.002]
[1754539011607,30.800044,3662.7,3662.6,0.002]
[1754539012630,28.07138214,3662.7,3662.6,0.002]
[1754539013627,14.4308,3662.7,3662.6,0.002]
[1754539013780,14.9808,3662.7,3662.6,0.8214]
[1754539014177,14.9808,3662.7,3662.6,0.4971]
[1754539017015,14.9808,3662.7,3662.6,0.002]
[1754539019520,11.4308,3662.7,3662.6,0.002]
[1754539021524,0.001,3663.1,3663.0,2.73000273]
[1754539021739,4.115,3663.1,3663.0,3.54940273]
[1754539022096,0.001,3663.1,3663.0,3.54940273]
[1754539022327,4.119,3663.1,3663.0,3.54940273]
[1754539022628,4.119,3663.1,3663.0,4.05824723]
[1754539026534,4.119,3663.1,3663.0,3.73394723]
[1754539026742,4.119,3663.1,3663.0,4.05824723]
[1754539029005,4.119,3663.1,3663.0,3.73394723]
[1754539029909,4.119,3663.1,3663.0,3.23884723]
[1754539030095,4.119,3663.1,3663.0,3.73394723]
[1754539031021,4.119,3663.1,3663.0,4.05824723]
[1754539033223,4.119,3663.1,3663.0,3.73394723]
[1754539036422,4.119,3663.1,3663.0,3.23884723]
[1754539038941,4.119,3663.1,3663.0,3.73394723]
[1754539039107,4.119,3663.1,3663.0,3.23884723]
[1754539044646,5.0698,3663.1,3663.0,2.73000273]
[1754539053461,4.119,3663.1,3663.0,2.73000273]
[1754539055267,5.0698,3663.1,3663.0,2.73000273]
[1754539057661,4.6058,3663.1,3663.0,2.73000273]
[1754539062349,5.0698,3663.1,3663.0,2.73000273]
[1754539068683,4.119,3663.1,3663.0,2.73000273]
[1754539069087,4.114,3663.1,3663.0,2.73000273]
[1754539069776,4.114,3663.1,3663.0,3.21430273]
[1754539070192,4.114,3663.1,3663.0,2.73000273]
[1754539071298,5.0364,3663.1,3663.0,2.73000273]
[1754539078018,5.1732,3663.1,3663.0,2.73000273]
[1754539080939,5.1732,3663.1,3662.7,2.73019245]
[1754539081143,5.1732,3663.1,3662.6,0.002]
[1754539081144,0.9224,3663.0,3662.6,0.002]
[1754539081442,0.1368,3662.8,3662.6,0.002]
[1754539081642,4.113,3662.7,3662.6,0.002]
[1754539081932,5.0354,3662.7,3662.6,0.002]
[1754539082138,5.55262,3662.7,3662.6,0.002]
[1754539082945,6.373386,3662.7,3662.6,0.002]
[1754539085729,5.55262,3662.7,3662.6,0.002]
[1754539085933,0.957565,3662.8,3662.7,2.73022633]
[1754539086242,5.1732,3662.8,3662.6,2.73228589]
[1754539086543,0.9224,3662.7,3662.6,2.73228589]
[1754539087138,4.2508,3662.8,3662.7,2.73022633]
[1754539087332,5.1732,3662.8,3662.7,2.73022633]
[1754539087535,5.1732,3662.8,3662.6,2.73227982]
[1754539088045,0.9224,3662.7,3662.6,2.73227982]
[1754539090343,0.4608,3662.7,3662.6,2.73227982]
[1754539090642,4.2508,3662.8,3662.7,2.73022633]
[1754539092048,0.1368,3662.8,3662.7,2.73022633]
[1754539092249,4.2518,3662.8,3662.7,2.73022633]
[1754539092851,0.1368,3662.8,3662.7,2.73022633]
[1754539093042,4.2518,3662.8,3662.7,3.99019182]
[1754539095342,4.115,3662.8,3662.7,3.99019182]
[1754539095543,4.115,3662.8,3662.7,4.31449182]
[1754539096056,4.115,3662.8,3662.7,3.99019182]
[1754539100462,4.115,3662.8,3662.7,3.51069182]
[1754539101962,4.115,3662.8,3662.7,3.96369182]
[1754539103559,5.0299,3662.8,3662.6,0.002]
[1754539103758,0.9149,3662.7,3662.6,2.73230087]
[1754539105572,4.2518,3662.8,3662.7,2.73022633]
[1754539105933,4.7236,3662.8,3662.7,2.73022633]
[1754539106132,5.1667,3662.8,3662.7,2.73022633]
[1754539108062,4.115,3662.8,3662.7,2.73022633]
[1754539108270,4.5868,3662.8,3662.7,2.73022633]
[1754539108563,5.0299,3662.8,3662.7,2.73022633]
[1754539109267,5.0299,3662.8,3662.6,2.73229766]
[1754539109443,5.0299,3662.8,3662.6,0.002]
[1754539109444,0.9149,3662.7,3662.6,0.002]
[1754539109648,1.0517,3662.7,3662.6,0.002]
[1754539111866,1.0517,3662.7,3662.6,2.73230087]
[1754539112042,0.6086,3662.7,3662.6,2.73230087]
[1754539112244,0.1368,3662.7,3662.6,2.73230087]
[1754539112435,1.0517,3662.7,3662.6,2.73230087]
[1754539113167,1.0517,3662.7,3662.6,0.002]
[1754539115150,2.28637,3662.7,3662.6,0.002]
[1754539116580,1.0517,3662.7,3662.6,0.002]
[1754539119055,0.1368,3662.7,3662.6,2.73230087]
[1754539120882,4.115,3662.8,3662.7,2.73022633]
[1754539121189,5.0299,3662.8,3662.7,2.73022633]
[1754539130770,5.0309,3662.8,3662.6,0.002]
[1754539130975,4.116,3662.8,3662.7,2.73022633]
[1754539131366,4.2528,3662.8,3662.7,2.73022633]
[1754539131876,5.1605,3662.8,3662.7,2.73022633]
[1754539134403,5.1605,3662.8,3662.6,2.7322784]
[1754539134604,0.9077,3662.7,3662.6,0.002]
[1754539134903,0.9077,3662.7,3662.6,2.73230087]
[1754539136098,0.9077,3662.7,3662.6,0.002]
[1754539136401,0.9077,3662.7,3662.6,2.73230087]
[1754539138169,0.4703,3662.7,3662.6,2.73230087]
[1754539138983,0.9077,3662.7,3662.6,2.73230087]
[1754539139383,4.2528,3662.8,3662.7,2.73022633]
[1754539140419,5.1605,3662.8,3662.7,2.73022633]
[1754539142484,5.1605,3662.8,3662.6,2.73227926]
[1754539142726,0.9077,3662.7,3662.6,2.73227926]
[1754539145384,4.2528,3662.8,3662.7,2.73022633]
[1754539145578,4.7231,3662.8,3662.7,2.73022633]
[1754539146319,5.1605,3662.8,3662.7,2.73022633]
[1754539147303,4.2528,3662.8,3662.7,2.73022633]
[1754539148588,4.7231,3662.8,3662.7,2.73022633]
[1754539152132,5.1605,3662.8,3662.7,2.73022633]
[1754539157458,4.2528,3662.8,3662.7,2.73022633]
[1754539158149,5.1605,3662.8,3662.7,2.73022633]
[1754539168271,4.2528,3662.8,3662.7,2.73022633]
[1754539169934,5.1792,3662.8,3662.7,2.73022633]
[1754539170563,4.2528,3662.8,3662.7,2.73022633]
[1754539173470,5.1792,3662.8,3662.7,2.73022633]
[1754539175773,0.1378,3662.8,3662.7,2.73022633]
[1754539175979,4.2518,3662.8,3662.7,2.73022633]
[1754539176574,4.115,3662.8,3662.7,3.18642633]
[1754539177280,4.115,3662.8,3662.7,2.73022633]
[1754539178447,4.6053,3662.8,3662.7,2.73022633]
[1754539179657,4.115,3662.8,3662.7,2.73022633]
[1754539185262,4.6053,3662.8,3662.7,2.73022633]
[1754539189597,5.0414,3662.8,3662.7,2.73022633]
[1754539190662,12.90200036,3662.8,3662.6,0.002]
[1754539190863,9.45812,3662.7,3662.6,0.002]
[1754539191283,12.45812,3662.7,3662.6,0.002]
[1754539197510,11.55262,3662.7,3662.6,0.002]
[1754539197694,12.45812,3662.7,3662.6,0.002]
[1754539201496,22.68435068,3662.7,3662.6,0.002]
[1754539201696,25.41457701,3662.7,3662.6,0.002]
[1754539202396,13.00812,3662.7,3662.6,0.002]
[1754539202810,15.73834633,3662.7,3662.6,0.002]
[1754539203590,17.12312,3662.7,3662.6,0.002]
[1754539205011,16.57312,3662.7,3662.6,0.002]
[1754539205996,17.12312,3662.7,3662.6,0.002]
[1754539214346,19.85334633,3662.7,3662.6,0.002]
[1754539214716,17.12312,3662.7,3662.6,0.002]
[1754539223465,19.85334633,3662.7,3662.6,0.002]
[1754539224754,12.67334633,3662.7,3662.6,0.002]
[1754539225754,9.94312,3662.7,3662.6,0.002]
[1754539228259,12.67334633,3662.7,3662.6,0.002]
[1754539228424,9.94312,3662.7,3662.6,0.002]
[1754539229290,12.67334633,3662.7,3662.6,0.002]
[1754539229590,9.94312,3662.7,3662.6,0.002]
[1754539232491,4.92262,3662.7,3662.6,0.002]
[1754539232799,7.8008,3662.7,3662.6,0.002]
[1754539234100,8.2708,3662.7,3662.6,0.002]
[1754539235788,7.8008,3662.7,3662.6,0.002]
[1754539237108,8.2708,3662.7,3662.6,0.002]
[1754539237928,8.738,3662.7,3662.6,0.002]
[1754539238118,10.85253286,3662.7,3662.6,0.002]
[1754539238666,9.91533286,3662.7,3662.6,0.002]
[1754539239007,10.38533286,3662.7,3662.6,0.002]
[1754539240111,14.56533286,3662.7,3662.6,0.002]
[1754539240278,17.56533286,3662.7,3662.6,0.002]
[1754539240468,17.09533286,3662.7,3662.6,0.002]
[1754539242390,17.56533286,3662.7,3662.6,0.002]
[1754539243022,18.03253286,3662.7,3662.6,0.002]
[1754539244795,27.70876354,3662.7,3662.6,0.002]
[1754539246727,18.03253286,3662.7,3662.6,0.002]
[1754539247412,30.43898987,3662.7,3662.6,0.002]
[1754539248432,27.70876354,3662.7,3662.6,0.002]
[1754539249732,30.43898987,3662.7,3662.6,0.002]
[1754539252154,27.70876354,3662.7,3662.6,0.002]
[1754539252649,30.43898987,3662.7,3662.6,0.002]
[1754539255840,30.80166412,3662.7,3662.6,0.002]
[1754539256566,31.62259312,3662.7,3662.6,0.002]
[1754539256716,31.25991887,3662.7,3662.6,0.002]
[1754539256918,12.98133286,3662.7,3662.6,0.002]
[1754539257116,14.9808,3662.7,3662.6,0.002]
[1754539257614,14.9808,3662.7,3662.6,0.4638]
[1754539257835,14.9808,3662.7,3662.6,0.002]
[1754539258462,14.9818,3662.7,3662.6,0.002]
[1754539259971,18.61462633,3662.7,3662.6,0.002]
[1754539260156,21.34328819,3662.7,3662.6,0.002]
[1754539261490,18.34328819,3662.7,3662.6,0.002]
[1754539262191,17.71046186,3662.7,3662.6,0.002]
[1754539262340,14.9818,3662.7,3662.6,0.002]
[1754539263831,17.71202633,3662.7,3662.6,0.002]
[1754539264433,14.9818,3662.7,3662.6,0.002]
[1754539264805,17.71202633,3662.7,3662.6,0.002]
[1754539265131,20.44068819,3662.7,3662.6,0.002]
[1754539265636,17.71046186,3662.7,3662.6,0.002]
[1754539265933,20.44068819,3662.7,3662.6,0.002]
[1754539266333,17.71046186,3662.7,3662.6,0.002]
[1754539266690,20.44068819,3662.7,3662.6,0.002]
[1754539267190,21.26152019,3662.7,3662.6,0.002]
[1754539267710,21.73172019,3662.7,3662.6,0.002]
[1754539267923,18.53129386,3662.7,3662.6,0.002]
[1754539271465,15.252632,3662.7,3662.6,0.002]
[1754539271668,14.4318,3662.7,3662.6,0.4638]
[1754539271864,0.1378,3662.7,3662.6,3.51840087]
[1754539272241,4.2518,3662.7,3662.6,3.51840087]
[1754539273743,4.115,3662.7,3662.6,3.51840087]
[1754539279404,4.115,3662.7,3662.6,3.19410087]
[1754539279599,4.115,3662.7,3662.6,3.51840087]
[1754539280557,4.115,3662.7,3662.6,3.19410087]
[1754539280872,5.051,3662.7,3662.6,0.002]
[1754539281057,9.53750307,3662.7,3662.6,0.002]
[1754539281715,12.2677294,3662.7,3662.6,0.002]
[1754539282063,12.8177294,3662.7,3662.6,0.002]
[1754539285607,14.00128365,3662.7,3662.6,0.002]
[1754539286527,13.6386094,3662.7,3662.6,0.002]
[1754539288326,14.00128365,3662.7,3662.6,0.002]
[1754539292654,13.6386094,3662.7,3662.6,0.002]
[1754539294655,14.00128365,3662.7,3662.6,0.002]
[1754539297971,14.00128365,3662.7,3662.6,0.002]
[1754539299265,21.18128365,3662.7,3662.6,0.002]
[1754539304590,20.8216094,3662.7,3662.6,0.002]
[1754539304789,30.49784008,3662.7,3662.6,0.002]
[1754539309503,30.86051433,3662.7,3662.6,0.002]
[1754539312480,29.56184008,3662.7,3662.6,0.002]
[1754539313311,30.05174008,3662.7,3662.6,0.002]
[1754539314586,30.50914008,3662.7,3662.6,0.002]
[1754539318474,29.56184008,3662.7,3662.6,0.002]
[1754539318813,30.50914008,3662.7,3662.6,0.002]
[1754539322420,30.05174008,3662.7,3662.6,0.002]
[1754539322720,30.50914008,3662.7,3662.6,0.002]
[1754539322886,30.05174008,3662.7,3662.6,0.002]
[1754539323086,29.56184008,3662.7,3662.6,0.002]
[1754539323290,36.12484008,3662.7,3662.6,0.002]
[1754539324116,36.61474008,3662.7,3662.6,0.002]
[1754539324283,37.07214008,3662.7,3662.6,0.002]
[1754539326594,36.12484008,3662.7,3662.6,0.002]
[1754539327216,36.61474008,3662.7,3662.6,0.002]
[1754539327522,36.12284008,3662.7,3662.6,0.5011]
[1754539327709,33.95225701,3662.7,3662.6,0.5011]
[1754539328320,33.95225701,3662.7,3662.6,0.002]
[1754539328628,33.95225701,3662.7,3662.6,0.5011]
[1754539329209,33.95225701,3662.7,3662.6,0.002]
[1754539330616,36.76893678,3662.7,3662.6,0.002]
[1754539330856,6.28030087,3662.6,3662.5,0.5409672]
[1754539331005,13.46030087,3662.6,3662.5,0.5409672]
[1754539331201,14.40760087,3662.6,3662.5,0.5409672]
[1754539332822,6.28037542,3662.5,3662.4,1.1880854]
[1754539333042,13.62451153,3662.5,3662.4,1.1880854]
[1754539333338,14.57181153,3662.5,3662.4,1.1880854]
[1754539337349,21.75181153,3662.5,3662.4,1.1880854]
[1754539338210,22.57282853,3662.5,3662.4,1.1880854]
[1754539339648,2.73044997,3662.4,3662.3,0.002]
[1754539339807,15.95682977,3662.2,3662.1,0.04]
[1754539340147,20.20962977,3662.2,3662.1,0.04]
[1754539340318,3.28074822,3662.0,3661.8,1.29215152]
[1754539340652,19.75624857,3661.9,3661.8,1.29215152]
[1754539340941,20.68664857,3661.9,3661.8,1.29215152]
[1754539341150,23.41747136,3661.9,3661.8,1.29215152]
[1754539341519,23.55427136,3661.9,3661.8,1.29215152]
[1754539343055,23.75980016,3661.9,3661.8,1.29215152]
[1754539345720,24.58094116,3661.9,3661.8,1.29215152]
[1754539347816,11.56029259,3661.9,3661.8,1.77445152]
[1754539348022,20.41538227,3661.9,3661.8,2.09875152]
[1754539348563,20.41538227,3661.9,3661.8,1.77445152]
[1754539349161,17.41538227,3661.9,3661.8,1.77445152]
[1754539349527,17.41638227,3661.9,3661.8,1.77445152]
[1754539349936,13.29938227,3661.9,3661.8,1.77445152]
[1754539350151,17.41638227,3661.9,3661.8,1.77445152]
[1754539350672,16.29938227,3661.9,3661.8,1.77445152]
[1754539350966,16.09385347,3661.9,3661.8,2.09875152]
[1754539351134,20.20985347,3661.9,3661.8,2.09875152]
[1754539351658,13.36303068,3661.9,3661.8,2.09875152]
[1754539351858,20.20985347,3661.9,3661.8,2.09875152]
[1754539352669,20.20985347,3661.9,3661.8,1.77445152]
[1754539352967,20.21085347,3661.9,3661.8,1.77445152]
[1754539353164,20.21085347,3661.9,3661.8,1.29215152]
[1754539354472,21.67967589,3661.9,3661.8,1.29215152]
[1754539354641,22.11457589,3661.9,3661.8,1.29215152]
[1754539354842,22.61007589,3661.9,3661.8,1.29215152]
[1754539356439,21.67967589,3661.9,3661.8,1.29215152]
[1754539356774,20.21085347,3661.9,3661.8,1.29215152]
[1754539358877,16.09385347,3661.9,3661.8,1.29215152]
[1754539359076,20.21085347,3661.9,3661.8,1.77445152]
[1754539360742,20.21085347,3661.9,3661.8,1.29215152]
[1754539363262,21.14125347,3661.9,3661.8,1.29215152]
[1754539364387,28.32125347,3661.9,3661.8,1.29215152]
[1754539365097,27.39085347,3661.9,3661.8,1.29215152]
[1754539365553,10.8668,3661.9,3661.8,1.29215152]
[1754539365757,14.9828,3661.9,3661.8,1.77445152]
[1754539365967,14.9828,3661.9,3661.8,2.09875152]
[1754539366167,14.9828,3661.9,3661.8,2.44144403]
[1754539366168,7.3168,3661.9,3661.8,2.44144403]
[1754539366389,11.4338,3661.9,3661.8,2.44144403]
[1754539366556,14.4338,3661.9,3661.8,2.44144403]
[1754539369908,14.4338,3661.9,3661.8,1.77445152]
[1754539372797,14.4338,3661.9,3661.8,2.09875152]
[1754539373097,7.3168,3661.9,3661.8,4.82964889]
[1754539373305,7.181,3662.7,3662.0,2.73074822]
[1754539373504,0.1368,3662.2,3662.1,0.8138]
[1754539373666,7.2548,3662.2,3662.1,2.9412688]
[1754539374202,4.2548,3662.2,3662.1,2.9412688]
[1754539374405,4.2548,3662.2,3662.1,3.7550688]
[1754539376368,4.118,3662.2,3662.1,3.7550688]
[1754539378592,0.1368,3662.4,3662.3,2.73052453]
[1754539378792,0.1378,3662.7,3662.6,2.73030087]
[1754539378970,4.119,3662.7,3662.6,2.73030087]
[1754539379170,4.119,3662.7,3662.6,3.68090087]
[1754539380579,4.12,3662.7,3662.6,3.68090087]
[1754539380875,4.12,3662.7,3662.6,4.09836331]
[1754539381816,0.001,3662.7,3662.6,4.09836331]
[1754539382171,1e-08,3662.8,3662.7,2.73022633]
[1754539382508,0.001,3663.1,3663.0,2.73000273]
[1754539383005,0.001,3663.1,3663.0,3.68060273]
[1754539383171,0.001,3663.1,3663.0,4.32167818]
[1754539384307,0.001,3663.5,3663.4,12.40593532]
[1754539384517,0.001,3663.5,3663.4,3.54350464]
[1754539384668,0.001,3663.5,3663.4,3.68030464]
[1754539384872,0.001,3663.5,3663.4,4.10525096]
[1754539387309,0.001,3663.5,3663.4,13.78148164]
[1754539387677,1e-08,3663.5,3663.4,13.78148164]
[1754539388216,1e-08,3663.5,3663.4,17.90548164]
[1754539392422,1e-08,3663.6,3663.5,2.72963013]
[1754539392712,1e-08,3663.6,3663.5,3.37070558]
[1754539400133,0.93030001,3663.6,3663.5,3.37070558]
[1754539408052,0.93030001,3663.6,3663.5,3.37270558]
[1754539410042,0.49120001,3663.6,3663.5,3.37270558]
[1754539410201,1e-08,3663.6,3663.5,3.37270558]
[1754539413003,0.93030001,3663.6,3663.5,3.37270558]
[1754539413858,0.93030001,3663.6,3663.5,0.002]
[1754539414710,0.93030001,3663.6,3663.5,2.73163013]
[1754539418967,1e-08,3663.6,3663.5,2.86843013]
[1754539420151,0.49120001,3663.6,3663.5,2.86843013]
[1754539420363,0.93030001,3663.6,3663.5,2.86843013]
[1754539420566,1e-08,3663.6,3663.5,2.86843013]
[1754539421072,1e-08,3663.6,3663.5,3.36323013]
[1754539423833,1e-08,3663.6,3663.5,2.86843013]
[1754539424171,0.93030001,3663.6,3663.5,2.86843013]
[1754539425268,1e-08,3663.6,3663.5,2.86843013]
[1754539425435,0.93030001,3663.6,3663.5,3.42824922]
[1754539426962,1e-08,3663.6,3663.5,3.42824922]
[1754539433364,0.46970001,3663.6,3663.5,3.42824922]
[1754539434044,0.92700001,3663.6,3663.5,3.42824922]
[1754539435656,1e-08,3663.6,3663.5,3.42824922]
[1754539436064,1e-08,3663.6,3663.5,3.92734922]
[1754539436583,1e-08,3663.6,3663.5,3.42824922]
[1754539437186,1e-08,3663.6,3663.5,3.92734922]
[1754539437483,1e-08,3663.6,3663.5,3.42824922]
[1754539437679,1e-08,3663.6,3663.5,3.92734922]
[1754539438783,1e-08,3663.6,3663.5,3.42824922]
[1754539444096,0.46970001,3663.6,3663.5,3.42824922]
[1754539444258,0.92700001,3663.6,3663.5,7.54824922]
[1754539454609,0.46970001,3663.6,3663.5,7.54824922]
[1754539457293,0.92700001,3663.6,3663.5,7.54824922]
[1754539457536,1e-08,3663.6,3663.5,7.54824922]
[1754539457710,1e-08,3663.6,3663.5,8.04734922]
[1754539458397,1e-08,3663.6,3663.5,8.04434922]
[1754539460231,1e-08,3663.6,3663.5,7.54524922]
[1754539460431,1e-08,3663.6,3663.5,8.03344922]
[1754539460639,1e-08,3663.6,3663.5,8.14281622]
[1754539460935,1e-08,3663.6,3663.5,8.46711622]
[1754539461319,0.001,3663.8,3663.7,2.72948112]
[1754539461525,0.001,3663.8,3663.7,7.4894838]
[1754539461898,0.001,3663.8,3663.7,7.9776838]
[1754539462239,0.001,3663.8,3663.7,8.0870428]
[1754539462442,0.001,3663.8,3663.7,7.5988428]
[1754539462828,0.9665,3663.8,3663.7,7.5988428]
[1754539463943,0.001,3663.8,3663.7,7.5988428]
[1754539469407,0.001,3663.8,3663.7,8.0870428]
[1754539469608,1e-08,3663.9,3663.8,2.72940662]
[1754539469807,1e-08,3663.9,3663.8,3.80471977]
[1754539470008,1e-08,3663.9,3663.8,4.12901977]
[1754539470238,1e-08,3664.2,3664.1,5.72918315]
[1754539470446,1e-08,3664.2,3664.1,9.84618315]
[1754539470650,1e-08,3664.2,3664.1,10.97738583]
[1754539470855,1e-08,3664.2,3664.1,11.08672683]
[1754539471711,1e-08,3664.3,3664.2,2.72910867]
[1754539472251,0.9665,3664.7,3664.5,2.72888525]
[1754539472252,1e-08,3664.7,3664.5,2.72888525]
[1754539472556,0.001,3664.8,3664.5,2.72888525]
[1754539472557,1e-08,3664.8,3664.7,2.72873632]
[1754539472737,1e-08,3664.9,3664.8,2.72866186]
[1754539472905,1e-08,3664.9,3664.8,6.84666186]
[1754539473107,1e-08,3664.9,3664.8,6.98346186]
[1754539478357,1e-08,3664.9,3664.8,7.47166186]
[1754539478656,1e-08,3664.9,3664.8,7.75859242]
[1754539479449,1e-08,3664.9,3664.8,7.27039242]
[1754539479655,1e-08,3664.9,3664.8,7.75859242]
[1754539479854,1e-08,3664.9,3664.8,7.27039242]
[1754539481433,1e-08,3664.9,3664.8,7.75859242]
[1754539482035,1e-08,3664.9,3664.8,8.25129242]
[1754539482243,1e-08,3664.9,3664.8,11.25129242]
[1754539483258,1e-08,3664.9,3664.8,10.76309242]
[1754539483935,1e-08,3664.9,3664.8,11.25129242]
[1754539486016,1e-08,3664.9,3664.8,20.4393231]
[1754539486320,1e-08,3664.9,3664.8,21.2518231]
[1754539488366,1e-08,3664.9,3664.8,21.8018231]
[1754539488837,1e-08,3664.9,3664.8,21.4775231]
[1754539489363,1e-08,3664.9,3664.8,21.8018231]
[1754539489776,1e-08,3664.9,3664.8,21.4775231]
[1754539490861,1e-08,3664.9,3664.8,6.64509242]
[1754539491049,1e-08,3664.9,3664.8,10.76409242]
[1754539491560,1e-08,3664.9,3664.8,10.76509242]
[1754539492852,0.95590001,3664.9,3664.8,10.76509242]
[1754539493376,0.001,3665.7,3665.6,2.72806634]
[1754539493742,0.001,3665.7,3665.6,2.86486634]
[1754539495569,0.9569,3665.7,3665.6,2.86486634]
[1754539498275,0.9569,3665.7,3665.6,3.37106902]
[1754539498480,0.001,3665.7,3665.6,3.37106902]
[1754539498636,0.001,3665.7,3665.6,3.82756902]
[1754539500680,0.001,3665.7,3665.6,3.37106902]
[1754539501046,0.9569,3665.7,3665.6,3.37106902]
[1754539501984,0.001,3665.7,3665.6,3.37106902]
[1754539502349,0.001,3665.7,3665.6,3.82756902]
[1754539503079,0.001,3665.7,3665.6,3.37106902]
[1754539503283,0.001,3666.0,3665.9,2.72784309]
[1754539503642,0.001,3666.0,3665.9,7.11773162]
[1754539503993,0.001,3666.0,3665.9,7.25373162]
[1754539504363,0.001,3666.0,3665.9,7.71023162]
[1754539506293,0.001,3666.0,3665.9,7.25373162]
[1754539506804,1e-08,3666.0,3665.9,7.25373162]
[1754539507179,1e-08,3666.0,3665.9,7.71023162]
[1754539511306,0.001,3666.8,3666.7,2.72724793]
[1754539512070,0.9569,3666.8,3666.7,2.72724793]
[1754539512983,10.63313068,3666.8,3666.6,2.72725086]
[1754539513309,10.63313068,3666.8,3665.5,3.1846089]
[1754539513310,0.9559,3666.7,3666.2,2.72761987]
[1754539513625,9.95921716,3666.8,3666.6,2.72732231]
[1754539513975,0.9559,3666.7,3666.6,2.72732231]
[1754539514168,0.9559,3666.7,3666.0,4.119]
[1754539514374,0.9559,3666.6,3666.0,4.119]
[1754539514686,0.001,3666.8,3666.5,2.72732335]
[1754539514919,0.96872307,3666.8,3666.1,2.72767048]
[1754539515121,0.96872307,3666.8,3666.0,4.119]
[1754539515122,0.001,3666.8,3666.7,2.72724793]
[1754539515831,0.9569,3666.8,3666.7,2.72724793]
[1754539518327,0.001,3666.8,3666.7,2.72724793]
[1754539519125,0.001,3666.8,3666.7,3.18374793]
[1754539521550,0.001,3666.8,3666.7,3.31974793]
[1754539521844,0.001,3666.8,3666.7,6.33584793]
[1754539522719,0.001,3666.8,3666.7,6.78744793]
[1754539523226,0.001,3666.8,3666.7,6.33584793]
[1754539524255,0.001,3666.8,3666.7,6.78744793]
[1754539524547,4.121,3667.3,3667.2,2.72687609]
[1754539524903,0.4899,3667.5,3667.4,2.72672738]
[1754539525435,0.9491,3667.5,3667.4,2.72672738]
[1754539525603,0.9491,3667.5,3667.4,2.86272738]
[1754539527505,0.9491,3667.5,3667.0,2.72700869]
[1754539527832,0.9491,3667.5,3666.5,4.121]
[1754539527833,0.136,3667.3,3667.1,2.72693563]
[1754539528147,0.9491,3667.2,3667.1,2.72693563]
[1754539529204,0.9491,3667.2,3667.0,2.72696403]
[1754539529423,0.9491,3667.1,3667.0,2.72696403]
[1754539530661,0.9491,3667.3,3666.7,3.19982864]
[1754539530947,0.9491,3667.3,3667.2,2.72687609]
[1754539533212,0.9491,3667.3,3667.1,2.72693573]
[1754539533439,3.0,3667.6,3667.2,2.7268449]
[1754539533751,3.0,3667.6,3667.0,0.136]
[1754539533950,9.81223068,3667.4,3666.8,0.136]
[1754539534110,4.125,3667.3,3666.9,2.72709918]
[1754539534443,0.9491,3667.2,3667.0,2.72699709]
[1754539534735,0.9491,3667.2,3666.9,2.72709328]
[1754539534938,4.125,3667.3,3666.9,2.72709328]
[1754539535129,0.9491,3667.1,3666.9,2.72709328]
[1754539535302,0.9491,3667.1,3666.8,0.136]
[1754539535303,0.9491,3667.1,3666.8,2.86316261]
[1754539535519,0.9491,3667.0,3666.8,2.86316261]
[1754539535846,0.9491,3666.9,3666.7,2.72723816]